[Event "Chinese Championship-B Men 2024"]
[Site "Liaocheng"]
[Date "2024.04.24"]
[Round "1.10"]
[White "Xi, Qi"]
[Black "Fu, Yuhan"]
[Result "1-0"]
[WhiteElo "2217"]
[BlackElo "1648"]
[PlyCount "91"]
[EventDate "2024.04.24"]
[EventType "swiss"]
[EventCountry "CHN"]
[TimeControl "5400+30"]

1. d4 {[%emt 0:00:07]} d5 {[%emt 0:00:09]} 2. c4 {[%emt 0:00:10]} e6 {[%emt 0:00:14]} 3. Nf3 {[%emt 0:00:16]} Nf6 {[%emt 0:00:10]} 4. Nc3 {[%emt 0:00:09]} c6 {[%emt 0:00:14]} 5. cxd5 {[%emt 0:03:43]} exd5 {[%emt 0:00:09]} 6. Bg5 {[%emt 0:00:04]} Be7 {[%emt 0:00:47]} 7. Qc2 {[%emt 0:00:37]} Be6 {[%emt 0:01:13]} 8. e3 {[%emt 0:00:17]} O-O {[%emt 0:00:24]} 9. Bd3 {[%emt 0:00:10]} h6 {[%emt 0:00:14]} 10. Bf4 {[%emt 0:00:51]} a5 {[%emt 0:06:16]} 11. h3 {[%emt 0:01:55]} Na6 {[%emt 0:00:58]} 12. a3 {[%emt 0:00:21]} Re8 {[%emt 0:02:44]} 13. O-O {[%emt 0:00:57]} Bd6 {[%emt 0:05:42]} 14. Ne5 {[%emt 0:05:56]} Qc7 {[%emt 0:01:46]} 15. Ne2 {[%emt 0:09:56]} Nc5 {[%emt 0:10:26]} 16. Rac1 {[%emt 0:22:18]} Nxd3 {[%emt 0:02:53]} 17. Nxd3 {[%emt 0:03:04]} Bf5 {[%emt 0:00:39]} 18. Bxd6 {[%emt 0:02:52]} Qxd6 {[%emt 0:00:01]} 19. Ng3 {[%emt 0:02:16]} Bg6 {[%emt 0:01:06]} 20. Qc5 {[%emt 0:03:30]} Qxc5 21. Nxc5 {[%emt 0:00:03]} Re7 {[%emt 0:01:44]} 22. a4 {[%emt 0:04:50]} Ne8 {[%emt 0:02:57]} 23. Rfd1 {[%emt 0:02:22]} Nd6 {[%emt 0:00:08]} 24. Nf1 {[%emt 0:02:36]} Nc4 {[%emt 0:01:46]} 25. b3 {[%emt 0:00:32]} Nd6 {[%emt 0:00:04]} 26. Rc3 {[%emt 0:01:29]} Rc8 {[%emt 0:01:34]} 27. Nd2 {[%emt 0:01:06]} f6 {[%emt 0:00:48]} 28. Rdc1 {[%emt 0:01:05]} Kf7 {[%emt 0:02:00]} 29. Nd3 {[%emt 0:00:55]} Bh7 {[%emt 0:01:21]} 30. Nf4 {[%emt 0:00:54]} g5 {[%emt 0:00:36]} 31. Nxd5 {[%emt 0:00:59]} cxd5 {[%emt 0:00:10]} 32. Rxc8 {[%emt 0:00:04]} Nxc8 {[%emt 0:00:06]} 33. Rxc8 {[%emt 0:00:01]} Rd7 {[%emt 0:00:23]} 34. f3 {[%emt 0:03:37]} Bd3 {[%emt 0:00:23]} 35. Kf2 {[%emt 0:00:55]} f5 {[%emt 0:00:07]} 36. Rc3 {[%emt 0:02:40]} Ba6 {[%emt 0:00:12]} 37. Rc5 {[%emt 0:00:09]} b6 {[%emt 0:00:59]} 38. Rc6 {[%emt 0:00:09]} Bd3 {[%emt 0:00:03]} 39. Rxh6 {[%emt 0:01:16]} Kg7 {[%emt 0:00:15]} 40. Rc6 {[%emt 0:00:29]} f4 {[%emt 0:00:06]} 41. Rc3 {[%emt 0:06:17]} Ba6 {[%emt 0:00:45]} 42. Nf1 {[%emt 0:06:09]} Re7 {[%emt 0:00:29]} 43. g3 {[%emt 0:01:45]} Kf7 {[%emt 0:00:42]} 44. gxf4 {[%emt 0:00:49]} gxf4 {[%emt 0:00:04]} 45. exf4 {[%emt 0:00:14]} Re2+ {[%emt 0:00:04]} 46. Kg3 {[%emt 0:00:06]} 1-0

[Event "Chinese Championship-B Men 2024"]
[Site "Liaocheng"]
[Date "2024.04.24"]
[Round "1.11"]
[White "Fang, Zelong"]
[Black "Chen, Hongsen"]
[Result "0-1"]
[WhiteElo "1642"]
[BlackElo "2171"]
[PlyCount "110"]
[EventDate "2024.04.24"]
[EventType "swiss"]
[EventCountry "CHN"]
[TimeControl "5400+30"]

1. e4 {[%emt 0:00:02]} c6 {[%emt 0:00:06]} 2. d4 {[%emt 0:00:14]} d5 {[%emt 0:00:06]} 3. e5 {[%emt 0:00:25]} Bf5 {[%emt 0:00:08]} 4. Nf3 {[%emt 0:00:06]} e6 {[%emt 0:00:09]} 5. c3 {[%emt 0:00:04]} c5 {[%emt 0:00:47]} 6. Bd3 {[%emt 0:00:29]} Bxd3 {[%emt 0:00:10]} 7. Qxd3 {[%emt 0:00:02]} Nd7 {[%emt 0:00:09]} 8. O-O {[%emt 0:00:49]} Ne7 {[%emt 0:00:09]} 9. Be3 {[%emt 0:01:14]} Nc6 {[%emt 0:00:57]} 10. a3 {[%emt 0:02:12]} a5 {[%emt 0:04:21]} 11. Nbd2 {[%emt 0:01:29]} c4 {[%emt 0:04:57]} 12. Qc2 {[%emt 0:01:55]} b5 {[%emt 0:01:23]} 13. Ne1 {[%emt 0:09:07]} f5 {[%emt 0:02:46]} 14. exf6 {[%emt 0:00:55]} Qxf6 {[%emt 0:00:30]} 15. f4 {[%emt 0:01:05]} Bd6 {[%emt 0:01:01]} 16. Nef3 {[%emt 0:03:01]} O-O {[%emt 0:01:24]} 17. Rae1 {[%emt 0:01:40]} Qf5 {[%emt 0:01:02]} 18. Qxf5 {[%emt 0:01:40]} exf5 {[%emt 0:00:07]} 19. Ne5 {[%emt 0:00:17]} Ndxe5 {[%emt 0:05:13]} 20. dxe5 {[%emt 0:02:03]} Be7 {[%emt 0:00:08]} 21. Nf3 {[%emt 0:01:27]} Kf7 {[%emt 0:02:04]} 22. Nd4 {[%emt 0:05:43]} Nxd4 {[%emt 0:00:18]} 23. Bxd4 {[%emt 0:00:07]} Ke6 {[%emt 0:00:06]} 24. Rd1 {[%emt 0:06:46]} Rab8 {[%emt 0:06:21]} 25. Ra1 {[%emt 0:01:54]} Rb7 {[%emt 0:00:29]} 26. Rfb1 {[%emt 0:01:13]} g5 {[%emt 0:03:10]} 27. fxg5 {[%emt 0:01:33]} Bxg5 {[%emt 0:00:07]} 28. b4 {[%emt 0:01:58]} a4 {[%emt 0:02:52]} 29. Rf1 {[%emt 0:00:40]} Rg7 {[%emt 0:00:46]} 30. Rf3 {[%emt 0:01:21]} h5 {[%emt 0:00:39]} 31. Raf1 {[%emt 0:00:31]} h4 {[%emt 0:00:45]} 32. h3 {[%emt 0:02:35]} Rg6 {[%emt 0:02:10]} 33. Kh1 {[%emt 0:02:07]} Rf7 {[%emt 0:02:01]} 34. g4 {[%emt 0:03:05]} hxg3 {[%emt 0:13:52]} 35. Rxg3 {[%emt 0:00:06]} f4 {[%emt 0:00:19]} 36. Rg4 {[%emt 0:01:48]} f3 {[%emt 0:00:49]} 37. Rg3 {[%emt 0:02:21]} Rf5 {[%emt 0:03:46]} 38. Rf2 {[%emt 0:06:25]} Rh6 {[%emt 0:20:48]} 39. Rf1 {[%emt 0:04:58]} Bd2 {[%emt 0:07:20]} 40. Kg1 {[%emt 0:04:09]} Rf4 {[%emt 0:02:05]} 41. Rfxf3 {[%emt 0:01:35]} Rxf3 {[%emt 0:00:23]} 42. Rxf3 {[%emt 0:00:01]} Bc1 {[%emt 0:00:15]} 43. Rf8 {[%emt 0:13:10]} Bxa3 {[%emt 0:00:25]} 44. Rb8 {[%emt 0:00:13]} Kf5 {[%emt 0:04:05]} 45. Rxb5 {[%emt 0:01:51]} Bb2 {[%emt 0:00:56]} 46. Rxd5 {[%emt 0:01:33]} Rxh3 {[%emt 0:01:45]} 47. Ra5 {[%emt 0:00:35]} a3 {[%emt 0:03:09]} 48. b5 {[%emt 0:01:48]} Bxc3 {[%emt 0:01:06]} 49. Bxc3 {[%emt 0:00:09]} Rxc3 {[%emt 0:00:05]} 50. b6 {[%emt 0:00:42]} Rb3 {[%emt 0:00:07]} 51. b7 {[%emt 0:00:25]} c3 {[%emt 0:00:38]} 52. Ra8 {[%emt 0:04:02]} Rxb7 {[%emt 0:00:24]} 53. Rxa3 {[%emt 0:00:30]} c2 {[%emt 0:00:05]} 54. Rf3+ {[%emt 0:00:03]} Kxe5 {[%emt 0:00:11]} 55. Rf1 {[%emt 0:00:03]} Rb1 {[%emt 0:00:06]} 0-1

[Event "Chinese Championship-B Men 2024"]
[Site "Liaocheng"]
[Date "2024.04.24"]
[Round "1.12"]
[White "Gong, Changda"]
[Black "Yu, Zhenghuan"]
[Result "1-0"]
[WhiteElo "2170"]
[BlackElo "1640"]
[PlyCount "87"]
[EventDate "2024.04.24"]
[EventType "swiss"]
[EventCountry "CHN"]
[TimeControl "5400+30"]

1. d4 {[%emt 0:00:12]} Nf6 {[%emt 0:00:05]} 2. c4 {[%emt 0:00:03]} g6 {[%emt 0:00:07]} 3. Nc3 {[%emt 0:00:07]} Bg7 {[%emt 0:00:07]} 4. e4 {[%emt 0:00:03]} O-O {[%emt 0:00:12]} 5. Nf3 {[%emt 0:00:07]} d6 {[%emt 0:00:06]} 6. Be2 {[%emt 0:00:22]} e5 {[%emt 0:00:09]} 7. Be3 {[%emt 0:00:42]} Nc6 {[%emt 0:04:08]} 8. d5 {[%emt 0:00:07]} Ne7 {[%emt 0:00:54]} 9. Nd2 {[%emt 0:00:14]} Ne8 {[%emt 0:02:30]} 10. b4 {[%emt 0:00:08]} f5 {[%emt 0:01:53]} 11. f3 {[%emt 0:00:06]} c6 {[%emt 0:09:07]} 12. Nb3 {[%emt 0:05:32]} Kh8 {[%emt 0:03:28]} 13. Rc1 {[%emt 0:10:39]} Nf6 {[%emt 0:10:03]} 14. O-O {[%emt 0:04:07]} cxd5 {[%emt 0:03:59]} 15. cxd5 {[%emt 0:02:44]} Bd7 {[%emt 0:04:09]} 16. Na5 {[%emt 0:02:05]} b6 {[%emt 0:00:29]} 17. Nc4 {[%emt 0:02:27]} Be8 {[%emt 0:00:30]} 18. a4 {[%emt 0:01:15]} f4 {[%emt 0:03:49]} 19. Bf2 {[%emt 0:00:10]} g5 {[%emt 0:00:43]} 20. b5 {[%emt 0:02:39]} Nc8 {[%emt 0:05:14]} 21. a5 {[%emt 0:07:01]} h5 {[%emt 0:00:52]} 22. Ra1 {[%emt 0:02:08]} Rb8 {[%emt 0:00:45]} 23. axb6 {[%emt 0:04:10]} axb6 {[%emt 0:00:11]} 24. Ra6 {[%emt 0:02:39]} Bh6 {[%emt 0:03:02]} 25. Qa1 {[%emt 0:04:42]} Bg6 {[%emt 0:08:42]} 26. Ra8 {[%emt 0:03:44]} Rxa8 {[%emt 0:00:21]} 27. Qxa8 {[%emt 0:00:06]} Qe7 {[%emt 0:03:26]} 28. Qa6 {[%emt 0:03:09]} g4 {[%emt 0:01:05]} 29. Nxb6 {[%emt 0:05:28]} Nxb6 {[%emt 0:01:09]} 30. Bxb6 {[%emt 0:00:42]} gxf3 {[%emt 0:01:25]} 31. Bxf3 {[%emt 0:03:12]} Ng4 {[%emt 0:01:48]} 32. Ba7 {[%emt 0:06:03]} Ne3 {[%emt 0:01:51]} 33. b6 {[%emt 0:08:01]} Nxf1 {[%emt 0:00:37]} 34. Kxf1 {[%emt 0:00:10]} Qh4 {[%emt 0:06:10]} 35. b7 {[%emt 0:01:12]} Qxh2 {[%emt 0:00:12]} 36. b8=Q {[%emt 0:00:13]} Qh1+ {[%emt 0:01:13]} 37. Ke2 {[%emt 0:00:15]} Rxb8 {[%emt 0:00:07]} 38. Bxb8 {[%emt 0:00:07]} Qc1 {[%emt 0:00:26]} 39. Qc8+ {[%emt 0:04:46]} Kh7 {[%emt 0:01:04]} 40. Qb7+ {[%emt 0:00:35]} Kg8 {[%emt 0:01:26]} 41. Kd3 {[%emt 0:00:42]} Qf1+ {[%emt 0:03:14]} 42. Kc2 {[%emt 0:00:11]} Bf8 {[%emt 0:01:06]} 43. Qb6 {[%emt 0:00:45]} h4 {[%emt 0:02:33]} 44. Bxd6 {[%emt 0:00:27]} 1-0

[Event "Chinese Championship-B Men 2024"]
[Site "Liaocheng"]
[Date "2024.04.24"]
[Round "1.13"]
[White "Cao, Jing Yang"]
[Black "Wang, Hao B"]
[Result "0-1"]
[WhiteElo "1626"]
[BlackElo "2170"]
[PlyCount "100"]
[EventDate "2024.04.24"]
[EventType "swiss"]
[EventCountry "CHN"]
[TimeControl "5400+30"]

1. d4 {[%emt 0:00:01]} Nf6 {[%emt 0:00:10]} 2. Nc3 {[%emt 0:00:07]} g6 {[%emt 0:00:16]} 3. Bf4 {[%emt 0:00:25]} Bg7 {[%emt 0:00:13]} 4. e3 {[%emt 0:01:05]} O-O {[%emt 0:00:15]} 5. Be2 {[%emt 0:00:27]} c5 {[%emt 0:02:02]} 6. Nf3 {[%emt 0:02:14]} d6 {[%emt 0:05:22]} 7. d5 {[%emt 0:04:58]} Nbd7 {[%emt 0:03:19]} 8. O-O {[%emt 0:01:49]} a6 {[%emt 0:00:38]} 9. a4 {[%emt 0:01:03]} Nh5 {[%emt 0:00:32]} 10. Bg3 {[%emt 0:02:14]} Nxg3 {[%emt 0:01:51]} 11. hxg3 {[%emt 0:00:11]} Qa5 {[%emt 0:00:46]} 12. Ra3 {[%emt 0:06:15]} Nb6 {[%emt 0:01:06]} 13. Qa1 {[%emt 0:05:28]} Bxc3 {[%emt 0:03:19]} 14. bxc3 {[%emt 0:00:15]} Nxd5 {[%emt 0:00:35]} 15. e4 {[%emt 1:11:28]} Nb6 {[%emt 0:02:27]} 16. Nd2 {[%emt 0:00:30]} Be6 {[%emt 0:04:02]} 17. Nb3 {[%emt 0:00:00]} Bxb3 {[%emt 0:00:08]} 18. cxb3 {[%emt 0:00:00]} Rac8 {[%emt 0:01:40]} 19. Qb2 {[%emt 0:00:00]} c4 {[%emt 0:00:46]} 20. bxc4 {[%emt 0:00:00]} Rxc4 {[%emt 0:04:43]} 21. Bxc4 {[%emt 0:00:00]} Nxc4 {[%emt 0:00:06]} 22. Qb3 {[%emt 0:00:00]} Nxa3 {[%emt 0:00:08]} 23. Qxa3 {[%emt 0:00:00]} Rc8 {[%emt 0:00:45]} 24. Rc1 {[%emt 0:00:00]} b5 {[%emt 0:01:14]} 25. f3 {[%emt 0:00:00]} Rc4 {[%emt 0:01:51]} 26. Qb3 {[%emt 0:00:00]} Qxa4 {[%emt 0:00:48]} 27. Qb2 {[%emt 0:00:00]} Qa5 {[%emt 0:01:05]} 28. Kh2 {[%emt 0:00:00]} h5 {[%emt 0:01:06]} 29. Qd2 {[%emt 0:00:00]} Qa3 {[%emt 0:01:44]} 30. Rc2 {[%emt 0:00:00]} Qc5 {[%emt 0:01:01]} 31. Ra2 {[%emt 0:00:00]} Qe5 {[%emt 0:01:16]} 32. Rxa6 {[%emt 0:00:00]} h4 {[%emt 0:00:18]} 33. Qf4 {[%emt 0:00:00]} hxg3+ {[%emt 0:01:33]} 34. Kxg3 {[%emt 0:00:00]} Qxc3 {[%emt 0:06:13]} 35. Qg5 {[%emt 0:00:00]} Rxe4 {[%emt 0:01:21]} 36. Ra8+ {[%emt 0:00:00]} Kg7 {[%emt 0:00:21]} 37. Rc8 {[%emt 0:00:00]} Qe1+ {[%emt 0:00:32]} 38. Kh2 {[%emt 0:00:00]} Rh4+ {[%emt 0:00:10]} 39. Qxh4 {[%emt 0:00:00]} Qxh4+ {[%emt 0:00:07]} 40. Kg1 {[%emt 0:00:00]} Qe1+ {[%emt 0:00:14]} 41. Kh2 {[%emt 0:00:00]} b4 {[%emt 0:00:16]} 42. Rb8 {[%emt 0:00:00]} d5 {[%emt 0:00:19]} 43. Rb5 {[%emt 0:00:00]} d4 {[%emt 0:00:10]} 44. Rd5 {[%emt 0:00:00]} b3 {[%emt 0:00:33]} 45. Rxd4 {[%emt 0:00:00]} Qe5+ {[%emt 0:00:05]} 46. Rf4 {[%emt 0:00:00]} Qxf4+ {[%emt 0:00:06]} 47. g3 {[%emt 0:00:00]} Qxf3 {[%emt 0:00:07]} 48. Kg1 {[%emt 0:00:00]} b2 {[%emt 0:00:07]} 49. Kh2 {[%emt 0:00:00]} b1=Q {[%emt 0:00:09]} 50. Kh3 {[%emt 0:00:00]} Qbh1# {[%emt 0:00:06]} 0-1

[Event "Chinese Championship-B Men 2024"]
[Site "Liaocheng"]
[Date "2024.04.24"]
[Round "1.14"]
[White "Hou, Yifan b"]
[Black "Chia, Yu Zhe Ashton"]
[Result "1-0"]
[WhiteElo "2161"]
[BlackElo "2230"]
[PlyCount "72"]
[EventDate "2024.04.24"]
[EventType "swiss"]
[EventCountry "CHN"]
[TimeControl "5400+30"]

1. d4 {[%emt 0:00:32]} Nf6 {[%emt 0:00:21]} 2. c4 {[%emt 0:00:24]} g6 {[%emt 0:00:32]} 3. Nf3 {[%emt 0:01:10]} Bg7 {[%emt 0:00:16]} 4. g3 {[%emt 0:00:19]} c6 {[%emt 0:00:09]} 5. Bg2 {[%emt 0:00:37]} d5 {[%emt 0:00:12]} 6. cxd5 {[%emt 0:00:55]} cxd5 {[%emt 0:00:25]} 7. O-O {[%emt 0:00:29]} O-O {[%emt 0:00:14]} 8. Nc3 {[%emt 0:00:08]} Nc6 {[%emt 0:00:09]} 9. Ne5 {[%emt 0:00:48]} Bf5 {[%emt 0:00:36]} 10. Nxc6 {[%emt 0:01:08]} bxc6 {[%emt 0:00:07]} 11. Bf4 {[%emt 0:00:17]} Qb6 {[%emt 0:02:41]} 12. Na4 {[%emt 0:05:39]} Qb5 {[%emt 0:00:33]} 13. Be5 {[%emt 0:02:16]} Ne4 {[%emt 0:01:04]} 14. Bxg7 {[%emt 0:00:38]} Kxg7 {[%emt 0:00:02]} 15. Rc1 {[%emt 0:01:26]} Rab8 {[%emt 0:01:29]} 16. b3 {[%emt 0:03:00]} Rfc8 {[%emt 0:00:41]} 17. Bxe4 {[%emt 0:11:54]} dxe4 {[%emt 0:00:12]} 18. Rc5 {[%emt 0:03:14]} Qa6 {[%emt 0:00:48]} 19. Qd2 {[%emt 0:01:11]} Rb5 {[%emt 0:01:30]} 20. Rfc1 {[%emt 0:00:57]} Rxc5 {[%emt 0:00:36]} 21. Nxc5 {[%emt 0:00:33]} Qb5 {[%emt 0:01:03]} 22. Rc4 {[%emt 0:07:50]} Rd8 {[%emt 0:00:41]} 23. Qf4 {[%emt 0:05:56]} Qa5 {[%emt 0:03:56]} 24. g4 {[%emt 0:06:36]} Bc8 {[%emt 0:07:39]} 25. Qxe4 {[%emt 0:02:02]} Rd5 {[%emt 0:00:27]} 26. h3 {[%emt 0:11:26]} e5 {[%emt 0:00:50]} 27. Nd3 {[%emt 0:02:29]} f5 {[%emt 0:01:13]} 28. Qe3 {[%emt 0:00:43]} e4 {[%emt 0:05:24]} 29. Ne5 {[%emt 0:03:39]} Qe1+ {[%emt 0:04:33]} 30. Kg2 {[%emt 0:00:43]} Ba6 {[%emt 0:05:29]} 31. Rxc6 {[%emt 0:01:18]} Bxe2 {[%emt 0:01:33]} 32. Rc1 {[%emt 0:00:35]} Bf1+ {[%emt 0:04:22]} 33. Kg3 {[%emt 0:01:26]} Qe2 {[%emt 0:05:05]} 34. Rc7+ {[%emt 0:25:12]} Kf6 {[%emt 0:02:29]} 35. Qh6 {[%emt 0:00:00]} Rxe5 {[%emt 0:07:56]} 36. Qg7+ {[%emt 0:00:00]} Kg5 {[%emt 0:02:29]} 1-0

[Event "Chinese Championship-B Men 2024"]
[Site "Liaocheng"]
[Date "2024.04.24"]
[Round "1.15"]
[White "Wu, Zhaohan"]
[Black "Zhu, Yilun"]
[Result "0-1"]
[WhiteElo "1601"]
[BlackElo "2125"]
[PlyCount "84"]
[EventDate "2024.04.24"]
[EventType "swiss"]
[EventCountry "CHN"]
[TimeControl "5400+30"]

1. e4 {[%emt 0:00:06]} e5 {[%emt 0:00:39]} 2. Nf3 {[%emt 0:01:08]} Nc6 {[%emt 0:00:03]} 3. d4 {[%emt 0:01:15]} exd4 {[%emt 0:00:05]} 4. Nxd4 {[%emt 0:00:05]} Nf6 {[%emt 0:02:15]} 5. Nc3 {[%emt 0:01:13]} Bb4 {[%emt 0:00:05]} 6. Nxc6 {[%emt 0:00:12]} bxc6 {[%emt 0:00:03]} 7. Bd3 {[%emt 0:00:07]} O-O {[%emt 0:00:02]} 8. O-O {[%emt 0:00:12]} Re8 {[%emt 1:31:18]} 9. Re1 {[%emt 0:02:09]} Rb8 {[%emt 0:00:00]} 10. a3 {[%emt 0:03:47]} Bd6 {[%emt 0:00:00]} 11. Rb1 {[%emt 0:05:06]} Be5 {[%emt 0:00:00]} 12. Bd2 {[%emt 0:03:24]} d6 {[%emt 0:00:00]} 13. f3 {[%emt 0:03:38]} Nd7 {[%emt 0:00:00]} 14. g3 {[%emt 0:04:13]} Nc5 {[%emt 0:00:00]} 15. Bf1 {[%emt 0:02:10]} Qf6 {[%emt 0:00:00]} 16. Kh1 {[%emt 0:09:21]} g6 {[%emt 0:00:00]} 17. Bg2 {[%emt 0:04:27]} h5 {[%emt 0:00:00]} 18. Qc1 {[%emt 0:10:57]} Bd7 {[%emt 0:00:00]} 19. Nd1 {[%emt 0:06:50]} Qh8 {[%emt 0:00:00]} 20. Bc3 {[%emt 0:00:48]} h4 {[%emt 0:00:00]} 21. Bxe5 {[%emt 0:03:14]} Rxe5 {[%emt 0:00:00]} 22. g4 {[%emt 0:00:35]} h3 {[%emt 0:00:00]} 23. Bf1 {[%emt 0:00:05]} Qh4 {[%emt 0:00:00]} 24. Nc3 {[%emt 0:02:31]} Rbe8 {[%emt 0:00:00]} 25. Qf4 {[%emt 0:02:46]} f5 {[%emt 0:00:00]} 26. Be2 {[%emt 0:06:05]} fxe4 {[%emt 0:00:00]} 27. Nxe4 {[%emt 0:01:05]} Nxe4 {[%emt 0:00:00]} 28. fxe4 {[%emt 0:00:12]} Rf8 {[%emt 0:00:00]} 29. Qg3 {[%emt 0:10:39]} Qxg3 {[%emt 0:00:00]} 30. hxg3 {[%emt 0:00:05]} Rxe4 {[%emt 0:00:00]} 31. Bd3 {[%emt 0:00:27]} Rxg4 {[%emt 0:00:00]} 32. Re7 {[%emt 0:00:47]} Rf7 {[%emt 0:00:00]} 33. Rxf7 {[%emt 0:00:37]} Kxf7 {[%emt 0:00:00]} 34. Kh2 {[%emt 0:00:06]} Rg5 {[%emt 0:00:00]} 35. Re1 {[%emt 0:01:47]} Re5 {[%emt 0:00:00]} 36. Rxe5 {[%emt 0:04:09]} dxe5 {[%emt 0:00:00]} 37. Be2 {[%emt 0:00:13]} Kf6 {[%emt 0:00:00]} 38. g4 {[%emt 0:00:08]} Kg5 {[%emt 0:00:00]} 39. Kxh3 {[%emt 0:00:05]} Kf4 {[%emt 0:00:00]} 40. Kh4 {[%emt 0:01:21]} e4 {[%emt 0:00:00]} 41. g5 {[%emt 0:00:41]} Ke3 {[%emt 0:00:00]} 42. Bc4 {[%emt 0:00:29]} Kf2 {[%emt 0:00:00]} 0-1

[Event "Chinese Championship-B Men 2024"]
[Site "Liaocheng"]
[Date "2024.04.24"]
[Round "2.1"]
[White "Jin, Yueheng"]
[Black "Yang, Shuai(Sd)"]
[Result "1-0"]
[WhiteElo "2407"]
[BlackElo "1823"]
[PlyCount "105"]
[EventDate "2024.04.24"]
[EventType "swiss"]
[EventCountry "CHN"]
[TimeControl "5400+30"]

1. d4 {[%emt 0:00:03]} Nf6 {[%emt 0:00:31]} 2. c4 {[%emt 0:00:13]} g6 {[%emt 0:00:06]} 3. g3 {[%emt 0:02:03]} Bg7 {[%emt 0:01:06]} 4. Bg2 {[%emt 0:00:59]} d6 {[%emt 0:05:44]} 5. Nf3 {[%emt 0:01:45]} Nbd7 {[%emt 0:00:13]} 6. Nc3 {[%emt 0:00:22]} c6 {[%emt 0:00:37]} 7. e4 {[%emt 0:01:14]} Nb6 {[%emt 0:03:15]} 8. b3 {[%emt 0:09:39]} d5 {[%emt 0:05:04]} 9. e5 {[%emt 0:02:28]} Ne4 {[%emt 0:00:10]} 10. Nxe4 {[%emt 0:00:37]} dxe4 {[%emt 0:00:06]} 11. Ng5 {[%emt 0:00:07]} c5 {[%emt 0:03:37]} 12. Bb2 {[%emt 0:09:06]} cxd4 {[%emt 0:24:04]} 13. Qxd4 {[%emt 0:00:09]} Qxd4 {[%emt 0:04:47]} 14. Bxd4 {[%emt 0:00:02]} Nd7 {[%emt 0:03:07]} 15. Nxf7 {[%emt 0:01:34]} O-O {[%emt 0:01:48]} 16. Rd1 {[%emt 0:08:01]} Nb8 {[%emt 0:19:53]} 17. e6 {[%emt 0:13:33]} Bxe6 {[%emt 0:15:08]} 18. Ng5 {[%emt 0:00:17]} Bg4 {[%emt 0:00:15]} 19. Bxg7 {[%emt 0:00:05]} Kxg7 {[%emt 0:00:06]} 20. Rd4 {[%emt 0:08:17]} Kh6 {[%emt 0:02:41]} 21. h4 {[%emt 0:11:32]} Bf3 {[%emt 0:02:34]} 22. O-O {[%emt 0:02:21]} Nc6 {[%emt 0:03:06]} 23. Rd7 {[%emt 0:00:01]} Rad8 {[%emt 0:00:14]} 24. Rxd8 {[%emt 0:00:48]} Nxd8 {[%emt 0:00:02]} 25. Nxe4 {[%emt 0:00:15]} Bxg2 {[%emt 0:01:30]} 26. Kxg2 {[%emt 0:00:02]} Nc6 {[%emt 0:00:17]} 27. Ng5 {[%emt 0:00:28]} Rf6 {[%emt 0:01:17]} 28. Rd1 {[%emt 0:00:06]} Kg7 {[%emt 0:00:05]} 29. Rd7 {[%emt 0:00:29]} b6 {[%emt 0:00:13]} 30. Rc7 {[%emt 0:03:04]} h6 {[%emt 0:00:29]} 31. Ne4 {[%emt 0:00:02]} Re6 {[%emt 0:00:10]} 32. Nc3 {[%emt 0:00:35]} Kf7 {[%emt 0:00:24]} 33. Nd5 {[%emt 0:01:51]} Ke8 {[%emt 0:00:15]} 34. Rc8+ {[%emt 0:04:44]} Kf7 {[%emt 0:01:05]} 35. b4 {[%emt 0:00:51]} Ne5 {[%emt 0:01:15]} 36. Rc7 {[%emt 0:03:14]} a5 {[%emt 0:00:35]} 37. c5 {[%emt 0:04:30]} bxc5 {[%emt 0:00:05]} 38. b5 {[%emt 0:00:03]} Nc4 {[%emt 0:01:20]} 39. Rxc5 {[%emt 0:00:20]} Nb6 {[%emt 0:00:27]} 40. Nxb6 {[%emt 0:02:45]} Rxb6 {[%emt 0:00:02]} 41. Kf3 {[%emt 0:01:22]} a4 {[%emt 0:00:13]} 42. Ke4 {[%emt 0:00:22]} Re6+ {[%emt 0:02:35]} 43. Kd3 {[%emt 0:03:26]} Re1 {[%emt 0:00:44]} 44. Rc2 {[%emt 0:00:13]} Rb1 {[%emt 0:00:14]} 45. Kc4 {[%emt 0:00:02]} a3 {[%emt 0:00:10]} 46. Rc3 {[%emt 0:00:05]} Ke6 {[%emt 0:01:12]} 47. Rxa3 {[%emt 0:00:40]} Kd7 {[%emt 0:00:20]} 48. Ra7+ {[%emt 0:01:39]} Kd8 {[%emt 0:00:27]} 49. a4 {[%emt 0:00:06]} Rf1 {[%emt 0:00:31]} 50. a5 {[%emt 0:00:27]} Rxf2 {[%emt 0:00:08]} 51. b6 {[%emt 0:00:35]} Rb2 {[%emt 0:00:51]} 52. b7 {[%emt 0:00:28]} Kc7 {[%emt 0:00:16]} 53. a6 {[%emt 0:00:03]} 1-0

[Event "Chinese Championship-B Men 2024"]
[Site "Liaocheng"]
[Date "2024.04.24"]
[Round "2.2"]
[White "Cheng, Zihan"]
[Black "Xie, Kaifan"]
[Result "0-1"]
[WhiteElo "1819"]
[BlackElo "2393"]
[PlyCount "104"]
[EventDate "2024.04.24"]
[EventType "swiss"]
[EventCountry "CHN"]
[TimeControl "5400+30"]

1. e4 {[%emt 0:00:02]} c6 {[%emt 0:00:26]} 2. d4 {[%emt 0:00:05]} d5 {[%emt 0:00:12]} 3. exd5 {[%emt 0:00:05]} cxd5 {[%emt 0:00:53]} 4. Bd3 {[%emt 0:00:07]} Nc6 {[%emt 0:00:30]} 5. c3 {[%emt 0:00:23]} Nf6 {[%emt 0:00:14]} 6. Bf4 {[%emt 0:00:10]} Bg4 {[%emt 0:00:58]} 7. Qb3 {[%emt 0:00:07]} e5 {[%emt 0:02:44]} 8. dxe5 {[%emt 0:06:32]} Nh5 {[%emt 0:00:09]} 9. Be3 {[%emt 0:02:55]} Nxe5 {[%emt 0:00:11]} 10. Bb5+ {[%emt 0:01:18]} Nc6 {[%emt 0:00:11]} 11. h3 {[%emt 0:01:02]} Be6 {[%emt 0:02:03]} 12. Qa4 {[%emt 0:04:50]} Qc7 {[%emt 0:05:29]} 13. Nf3 {[%emt 0:02:16]} Bd6 {[%emt 0:01:13]} 14. Nd4 {[%emt 0:06:27]} Bd7 {[%emt 0:02:01]} 15. O-O {[%emt 0:13:05]} O-O {[%emt 0:00:58]} 16. Bd3 {[%emt 0:04:50]} Bh2+ {[%emt 0:09:43]} 17. Kh1 {[%emt 0:00:08]} Bf4 {[%emt 0:00:05]} 18. Nxc6 {[%emt 0:08:11]} Bxe3 {[%emt 0:02:36]} 19. Ne7+ {[%emt 0:01:30]} Kh8 {[%emt 0:00:24]} 20. Nxd5 {[%emt 0:00:41]} Qd6 {[%emt 0:32:08]} 21. Qe4 {[%emt 0:00:27]} f5 {[%emt 0:00:02]} 22. Qxe3 {[%emt 0:01:18]} Qxd5 {[%emt 0:01:44]} 23. Be2 {[%emt 0:01:35]} Rae8 {[%emt 0:04:25]} 24. Qf3 {[%emt 0:01:02]} Qe5 {[%emt 0:01:15]} 25. Qxh5 {[%emt 0:01:03]} g6 {[%emt 0:04:49]} 26. Qh4 {[%emt 0:02:47]} Qxe2 {[%emt 0:00:07]} 27. Qd4+ {[%emt 0:00:12]} Kg8 {[%emt 0:00:03]} 28. Nd2 {[%emt 0:00:20]} Bc6 {[%emt 0:01:33]} 29. Rfe1 {[%emt 0:12:36]} Qxe1+ {[%emt 0:01:31]} 30. Rxe1 {[%emt 0:00:02]} Rxe1+ {[%emt 0:00:03]} 31. Kh2 {[%emt 0:00:01]} a6 {[%emt 0:04:31]} 32. Nc4 {[%emt 0:01:57]} Re2 {[%emt 0:01:32]} 33. a3 {[%emt 0:04:50]} Re4 {[%emt 0:02:37]} 34. Qc5 {[%emt 0:00:47]} Rd8 {[%emt 0:00:29]} 35. Qb6 {[%emt 0:04:23]} Rd5 {[%emt 0:02:55]} 36. Na5 {[%emt 0:06:41]} Rb5 {[%emt 0:02:55]} 37. Qc7 {[%emt 0:00:20]} Rxb2 {[%emt 0:01:33]} 38. Nxc6 {[%emt 0:00:19]} bxc6 {[%emt 0:00:01]} 39. Qc8+ {[%emt 0:01:15]} Kf7 {[%emt 0:01:16]} 40. Qxa6 {[%emt 0:01:48]} Ree2 {[%emt 0:00:29]} 41. Qc4+ {[%emt 0:00:45]} Kf8 {[%emt 0:01:41]} 42. Qc5+ {[%emt 0:01:22]} Kf7 {[%emt 0:00:11]} 43. Qa7+ {[%emt 0:02:19]} Re7 {[%emt 0:01:22]} 44. Qd4 {[%emt 0:00:59]} Re4 {[%emt 0:05:18]} 45. Qd7+ {[%emt 0:01:05]} Re7 {[%emt 0:00:04]} 46. Qxc6 {[%emt 0:00:46]} Rxf2 {[%emt 0:00:02]} 47. Qd5+ {[%emt 0:00:17]} Kf8 {[%emt 0:00:07]} 48. a4 {[%emt 0:01:53]} Rf1 {[%emt 0:00:55]} 49. a5 {[%emt 0:00:25]} f4 {[%emt 0:03:09]} 50. a6 {[%emt 0:00:52]} Ree1 {[%emt 0:00:35]} 51. Qd8+ {[%emt 0:02:04]} Kg7 {[%emt 0:00:10]} 52. Qd4+ {[%emt 0:02:49]} Kh6 {[%emt 0:00:16]} 0-1